fUSD/lending_fUSD_20260605
["ID","MTS","AMOUNT","RATE_DAILY","PERIOD"]
[424205177,1780663832000,-456.0,0.00013175,2]
[424205190,1780663832000,-443.0,0.00013175,2]
[424205182,1780663832000,-444.0,0.00013175,2]
[424205181,1780663832000,-451.0,0.00013175,2]
[424205174,1780663832000,-454.0,0.00013175,2]
[424205184,1780663832000,-447.0,0.00013175,2]
[424205183,1780663832000,-454.0,0.00013175,2]
[424205210,1780663832000,-1063.57377001,0.00013333,2]
[424205178,1780663832000,-447.0,0.00013175,2]
[424205188,1780663832000,-450.0,0.00013175,2]
[424205186,1780663832000,-458.0,0.00013175,2]
[424205179,1780663832000,-457.0,0.00013175,2]
[424205171,1780663832000,-451.0,0.00013174,2]
[424205180,1780663832000,-458.0,0.00013175,2]
[424205176,1780663832000,-452.0,0.00013175,2]
[424205175,1780663832000,-454.0,0.00013175,2]
[424205185,1780663832000,-443.0,0.00013175,2]
[424205220,1780663838000,-3259.71757163,0.00013333,2]
[424205222,1780663838000,-680.39207767,0.0001335,2]
[424205218,1780663838000,-2763.55227673,0.00013333,2]
[424205217,1780663838000,-192.09265133,0.0001324,7]
[424205219,1780663838000,-264.28699934,0.00013333,2]
[424205221,1780663838000,-151.0,0.00013348,2]
[424205248,1780663840000,-1584.98310109,0.00013351,2]
[424205247,1780663840000,-1000.0,0.0001335,2]
[424205246,1780663840000,-319.60792233,0.0001335,2]
[424205268,1780663842000,-1139.94939191,0.00012549,2]
[424205269,1780663843000,-2172.86060809,0.00012549,2]
[424205270,1780663843000,-29634.64108907,0.00013351,2]
[424205362,1780663850000,500.0,0.0003,120]
[424205361,1780663850000,500.0,0.0003,120]
[424205364,1780663851000,584.728,0.0003,120]
[424205363,1780663851000,500.0,0.0003,120]
[424205365,1780663975000,-425.12350691,0.00012029,7]
[424205366,1780664029000,-152.0,0.00012058,2]
[424205367,1780664067000,791.6,0.00030137,120]
[424205368,1780664082000,-425.12350691,0.00012269,7]
[424205369,1780664136000,-548.98854113,0.00012329,2]
[424205370,1780664189000,-2000.0,0.00012335,2]
[424205371,1780664242000,-180.64,0.00012266,2]
[424205372,1780664281000,241.91148284,0.000115,3]
[424205373,1780664295000,-1200.0,0.000117,4]
[424205374,1780664350000,-300.0,0.000116,4]
[424205375,1780664404000,-700.0,0.000117,4]
[424205376,1780664456000,-2500.0,0.000118,4]
[424205377,1780664464000,300.0,0.00030137,120]
[424205379,1780664551000,3365.331,0.00030136,120]
[424205380,1780664584000,300.0,0.00030137,120]
[424205381,1780664647000,1029.58,0.00030137,120]
[424205384,1780664816000,-483.36106379,0.00011542,2]
[424205383,1780664816000,-248.62,0.00011445,2]
[424205385,1780664834000,151.10510255,0.0003013,120]
[424205386,1780664855000,2950.67,0.00030082,120]
[424205387,1780664869000,-16.63893621,0.00011542,2]
[424205388,1780664908000,150.70953428,0.0003013,120]
[424205389,1780664924000,-473.30449864,0.00011542,2]
[424205390,1780664940000,2000.0,0.00030136,120]
[424205391,1780664978000,-1851.13,0.00011543,2]
[424205392,1780664980000,150.0,0.00030037,120]
[424205393,1780664998000,333.15818647,0.00022357,30]
[424205396,1780665032000,-2000.0,0.00011306,2]
[424205439,1780665051000,-2700.0,0.000116,4]
[424205435,1780665051000,-1400.0,0.000116,4]
[424205434,1780665051000,-750.0,0.00011599,2]
[424205433,1780665051000,-450.0,0.00011599,2]
[424205432,1780665051000,-150.0,0.00011543,7]
[424205442,1780665052000,-2300.0,0.000116,4]
[424205443,1780665052000,-1000.0,0.000116,4]
[424205445,1780665052000,-5400.0,0.000117,4]
[424205447,1780665052000,-4600.0,0.000117,4]
[424205449,1780665052000,-2100.0,0.000117,4]
[424205456,1780665052000,-3200.0,0.000118,4]
[424205452,1780665052000,-200.0,0.00011795,2]
[424205454,1780665052000,-7000.0,0.000118,4]
[424205460,1780665052000,-300.0,0.00011885,2]
[424205458,1780665052000,-1851.13,0.00011831,2]
[424205451,1780665052000,-166.66,0.00011758,2]
[424205465,1780665053000,-5368.9,0.00011887,2]
[424205466,1780665053000,-9300.0,0.000119,4]
[424205468,1780665053000,-4200.0,0.000119,4]
[424205472,1780665053000,-214.334,0.00012009,2]
[424205471,1780665053000,-3725.414,0.00012009,2]
[424205473,1780665053000,-163.61,0.00012009,2]
[424205470,1780665053000,-1118.33,0.00012009,2]
[424205476,1780665053000,-351933.64961079,0.0001202,2]
[424205497,1780665054000,-868.52832,0.0001202,2]
[424205496,1780665054000,-3366.73601876,0.0001202,2]
[424205492,1780665054000,-693.04329282,0.0001202,2]
[424205491,1780665054000,-1661.8,0.0001202,2]
[424205490,1780665054000,-35639.24192834,0.0001202,2]
[424205501,1780665055000,-1636.27833148,0.0001202,2]
[424205507,1780665055000,-972.8454993,0.0001202,2]
[424205504,1780665055000,-13978.86332071,0.0001202,2]
[424205502,1780665055000,-1243.66173485,0.0001202,2]
[424205500,1780665055000,-343.29292514,0.0001202,2]
[424205512,1780665057000,-27405.18402358,0.0001202,2]
[424205511,1780665057000,-8460.0,0.0001202,2]
[424205514,1780665057000,-5979.80015127,0.0001202,2]
[424205515,1780665057000,-1440.0,0.0001202,2]
[424205513,1780665057000,-929.64528859,0.0001202,2]
[424205516,1780665063000,-458.34308738,0.00011599,2]
[424205517,1780665063000,-579.25886554,0.00011599,2]
[424205518,1780665063000,-2043447.42955437,0.0001202,2]
[424205519,1780665063000,-351.74819876,0.00012048,2]
[424205520,1780665063000,-152.0,0.0001206,2]
[424205522,1780665063000,-2950.67,0.00012329,2]
[424205523,1780665063000,-150.0,0.00012391,2]
[424205524,1780665063000,-1508.79803981,0.00012401,2]
[424205525,1780665063000,-808.43136146,0.00012401,2]
[424205521,1780665063000,-1851.13,0.0001212,2]
[424205526,1780665064000,-1851.13,0.00012409,2]
[424205531,1780665064000,-151.0,0.00012451,2]
[424205528,1780665064000,-1439.0,0.00012438,2]
[424205530,1780665064000,-151.0,0.00012451,2]
[424205529,1780665064000,-1010.43682413,0.00012444,2]
[424205533,1780665064000,-1000.0,0.00012453,2]
[424205527,1780665064000,-2684.06312878,0.00012414,2]
[424205535,1780665064000,-1013.97488961,0.00012453,3]
[424205534,1780665064000,-1130.69503016,0.00012453,3]
[424205537,1780665064000,-1013.97488959,0.00012453,3]
[424205536,1780665064000,-1013.97488959,0.00012453,3]
[424205538,1780665064000,-1013.97488959,0.00012453,3]
[424205540,1780665064000,-150.0,0.00012453,2]
[424205539,1780665064000,-1013.97488959,0.00012453,3]
[424205532,1780665064000,-151.0,0.00012451,2]
[424205546,1780665065000,-1010.43682413,0.00012504,2]
[424205541,1780665065000,-1000.0,0.00012453,2]
[424205542,1780665065000,-1000.0,0.00012453,2]
[424205545,1780665065000,-2090.797279,0.00012501,2]
[424205543,1780665065000,-29385.0620669,0.00012462,2]
[424205544,1780665065000,-206.6924006,0.00012501,2]
[424205548,1780665065000,-257553.1516209,0.00012514,2]
[424205554,1780665065000,-1024.56049,0.00012514,2]
[424205547,1780665065000,-862766.2312969,0.00012514,2]
[424205550,1780665065000,-150.0,0.00012514,2]
[424205551,1780665065000,-213.0,0.00012514,2]
[424205552,1780665065000,-302.46,0.00012514,2]
[424205553,1780665065000,-357.3671277,0.00012514,2]
[424205555,1780665065000,-1024.56049,0.00012514,2]
[424205549,1780665065000,-151.0,0.00012514,2]
[424205556,1780665066000,-1024.56049,0.00012514,2]
[424205557,1780665066000,-1024.56049,0.00012514,2]
[424205558,1780665066000,-160488.7467614,0.00012514,2]
[424205559,1780665066000,-151.0,0.00012514,2]
[424205560,1780665066000,-154.330341,0.00012514,2]
[424205561,1780665066000,-164.0,0.00012514,2]
[424205562,1780665066000,-164.0,0.00012514,2]
[424205563,1780665066000,-164.0,0.00012514,2]
[424205564,1780665066000,-151.0,0.00012518,2]
[424205565,1780665067000,-21796.0278864,0.00012528,2]
[424205566,1780665067000,-151.0,0.00012539,2]
[424205567,1780665067000,-152.0,0.00012541,7]
[424205568,1780665067000,-300.0,0.00012541,2]
[424205569,1780665067000,-670.46851618,0.00012541,2]
[424205576,1780665067000,-1024.56049,0.00012542,2]
[424205571,1780665067000,-176.897767,0.00012542,2]
[424205572,1780665067000,-176.897767,0.00012542,2]
[424205573,1780665067000,-176.897767,0.00012542,2]
[424205574,1780665067000,-176.897767,0.00012542,2]
[424205575,1780665067000,-151.0,0.00012542,2]
[424205570,1780665067000,-1010686.2969397,0.00012542,2]
[424205582,1780665068000,-172.2351989,0.00012575,2]
[424205580,1780665068000,-151.0,0.00012542,2]
[424205581,1780665068000,-29166.2376359,0.00012554,2]
[424205583,1780665068000,-227.39720448,0.00012575,2]
[424205578,1780665068000,-1024.56049,0.00012542,2]
[424205577,1780665068000,-1024.56049,0.00012542,2]
[424205579,1780665068000,-1024.56049,0.00012542,2]
[424205584,1780665068000,-152.0,0.00012578,7]
[424205585,1780665068000,-500.0,0.0001263,2]
[424205595,1780665068000,-1680.0,0.00012759,2]
[424205594,1780665068000,-166.67,0.00012727,2]
[424205593,1780665068000,-2000.0,0.00012719,2]
[424205592,1780665068000,-1851.13,0.00012697,2]
[424205591,1780665068000,-500.0,0.00012697,2]
[424205586,1780665068000,-425.12350691,0.0001263,7]
[424205588,1780665068000,-4000.0,0.00012696,2]
[424205589,1780665068000,-500.0,0.00012696,2]
[424205587,1780665068000,-215.77576141,0.00012663,2]
[424205590,1780665068000,-250.0,0.00012697,2]
[424205596,1780665069000,-2684.06312873,0.00012769,2]
[424205598,1780665069000,-11600.0,0.000128,4]
[424205599,1780665069000,-5300.0,0.000128,4]
[424205600,1780665069000,-1024.56049,0.00012806,2]
[424205602,1780665069000,-1024.56049,0.00012806,2]
[424205603,1780665069000,-1024.56049,0.00012806,2]
[424205604,1780665069000,-151.0,0.00012806,2]
[424205597,1780665069000,-1508.7980398,0.00012776,2]
[424205606,1780665069000,-470.65922505,0.00012822,2]
[424205605,1780665069000,-150.0,0.00012822,2]
[424205612,1780665069000,-22228.94,0.0001288,2]
[424205611,1780665069000,-470.65922505,0.00012879,2]
[424205610,1780665069000,-470.65922505,0.00012865,2]
[424205601,1780665069000,-1024.56049,0.00012806,2]
[424205609,1780665069000,-150.0,0.00012864,2]
[424205607,1780665069000,-470.65922505,0.00012836,2]
[424205608,1780665069000,-470.65922505,0.00012851,2]
[424205615,1780665070000,-172.2351989,0.000129,2]
[424205616,1780665070000,-2300.0,0.000129,4]
[424205614,1780665070000,-470.65922505,0.00012894,2]
[424205617,1780665070000,-1000.0,0.000129,4]
[424205618,1780665070000,-500.0,0.00012904,2]
[424205619,1780665070000,-150.0,0.00012906,2]
[424205621,1780665070000,-176.897767,0.00012914,2]
[424205622,1780665070000,-176.897767,0.00012914,2]
[424205624,1780665070000,-176.897767,0.00012914,2]
[424205625,1780665070000,-151.0,0.00012914,2]
[424205626,1780665070000,-470.65922505,0.00012923,2]
[424205627,1780665070000,-470.65922505,0.00012937,2]
[424205613,1780665070000,-22228.94,0.0001288,2]
[424205620,1780665070000,-470.65922505,0.00012908,2]
[424205623,1780665070000,-176.897767,0.00012914,2]
[424205628,1780665071000,-940.14567061,0.00012942,2]
[424205629,1780665071000,-174.39803428,0.00012942,2]
[424205630,1780665071000,-150.0,0.00012948,2]
[424205631,1780665071000,-470.65922505,0.00012951,2]
[424205644,1780665072000,-470.65922505,0.00013052,2]
[424205632,1780665072000,-7151.935636,0.00012956,2]
[424205633,1780665072000,-1057.56677,0.00012956,2]
[424205634,1780665072000,-470.65922505,0.00012966,2]
[424205637,1780665072000,-425.12350691,0.00012991,7]
[424205635,1780665072000,-470.65922505,0.0001298,2]
[424205639,1780665072000,-150.0,0.00013,2]
[424205640,1780665072000,-470.65922505,0.00013009,2]
[424205642,1780665072000,-150.0,0.00013031,2]
[424205641,1780665072000,-470.65922505,0.00013023,2]
[424205643,1780665072000,-470.65922505,0.00013038,2]
[424205638,1780665072000,-470.65922505,0.00012995,2]
[424205636,1780665072000,-150.0,0.0001299,2]
[424205649,1780665073000,-470.65922505,0.0001311,2]
[424205645,1780665073000,-470.65922505,0.00013067,2]
[424205646,1780665073000,-150.0,0.00013073,2]
[424205647,1780665073000,-470.65922505,0.00013081,2]
[424205648,1780665073000,-470.65922505,0.00013095,2]
[424205650,1780665073000,-150.0,0.00013115,2]
[424205652,1780665073000,-2684.06312873,0.00013124,2]
[424205653,1780665073000,-470.65922505,0.00013139,2]
[424205654,1780665073000,-1024.56049,0.00013151,2]
[424205655,1780665073000,-1024.56049,0.00013151,2]
[424205656,1780665073000,-1024.56049,0.00013151,2]
[424205657,1780665073000,-1024.56049,0.00013151,2]
[424205658,1780665073000,-286.777986,0.00013151,2]
[424205651,1780665073000,-470.65922505,0.00013124,2]
[424205660,1780665074000,-470.65922505,0.00013153,2]
[424205661,1780665074000,-150.0,0.00013157,2]
[424205662,1780665074000,-470.65922505,0.00013167,2]
[424205663,1780665074000,-500.0,0.00013178,2]
[424205665,1780665074000,-470.65922505,0.00013196,2]
[424205664,1780665074000,-470.65922505,0.00013182,2]
[424205668,1780665074000,-233439.72378349,0.0001322,2]
[424205667,1780665074000,-470.65922505,0.0001321,2]
[424205669,1780665074000,-176.897767,0.0001322,2]
[424205670,1780665074000,-176.897767,0.0001322,2]
[424205671,1780665074000,-176.897767,0.0001322,2]
[424205672,1780665074000,-176.897767,0.0001322,2]
[424205666,1780665074000,-150.0,0.00013199,2]
[424205659,1780665074000,-1508.7980398,0.00013151,2]
[424205679,1780665075000,-470.65922505,0.00013239,2]
[424205678,1780665075000,-470.65922505,0.00013225,2]
[424205676,1780665075000,-1024.56049,0.0001322,2]
[424205680,1780665075000,-150.0,0.00013241,2]
[424205675,1780665075000,-1024.56049,0.0001322,2]
[424205674,1780665075000,-1024.56049,0.0001322,2]
[424205677,1780665075000,-1024.560498,0.0001322,2]
[424205681,1780665075000,-1010.43682413,0.00013241,2]
[424205673,1780665075000,-151.0,0.0001322,2]
[424205683,1780665075000,-151.0,0.00013248,2]
[424205684,1780665075000,-666.0,0.0001325,2]
[424205685,1780665075000,-300.0,0.0001325,2]
[424205686,1780665075000,-666.0,0.0001325,2]
[424205687,1780665075000,-300.0,0.0001325,2]
[424205689,1780665075000,-1500000.0,0.00013251,2]
[424205688,1780665075000,-1013.9748896,0.0001325,3]
[424205690,1780665075000,-151.0,0.00013251,2]
[424205682,1780665075000,-151.0,0.00013248,2]
[424205701,1780665076000,-150.0,0.00013283,2]
[424205699,1780665076000,-470.65922505,0.00013268,2]
[424205698,1780665076000,-470.65922505,0.00013254,2]
[424205697,1780665076000,-180.808887,0.00013251,2]
[424205696,1780665076000,-176.897767,0.00013251,2]
[424205691,1780665076000,-151.0,0.00013251,2]
[424205694,1780665076000,-176.897767,0.00013251,2]
[424205693,1780665076000,-176.897767,0.00013251,2]
[424205700,1780665076000,-470.65922505,0.00013282,2]
[424205692,1780665076000,-157.975636,0.00013251,2]
[424205695,1780665076000,-176.897767,0.00013251,2]
[424205702,1780665076000,-470.65922505,0.00013297,2]
[424205704,1780665076000,-372.58578916,0.00013317,2]
[424205703,1780665076000,-470.65922505,0.00013311,2]
[424205715,1780665076000,-184.42893367,0.0001335,2]
[424205714,1780665076000,-151.0,0.0001335,2]
[424205711,1780665076000,-300.0,0.0001335,2]
[424205712,1780665076000,-666.0,0.0001335,2]
[424205710,1780665076000,-666.0,0.0001335,2]
[424205713,1780665076000,-151.0,0.0001335,2]
[424205708,1780665076000,-470.65922505,0.0001334,2]
[424205707,1780665076000,-206.6924006,0.00013331,2]
[424205705,1780665076000,-150.0,0.00013325,2]
[424205706,1780665076000,-470.65922505,0.00013326,2]
[424205709,1780665076000,-151.0,0.00013348,2]
[424205722,1780665077000,-1548.0,0.00013351,2]
[424205716,1780665077000,-446.0,0.00013351,2]
[424205718,1780665077000,-151.0,0.00013351,2]
[424205719,1780665077000,-1547.0,0.00013351,2]
[424205720,1780665077000,-1548.0,0.00013351,2]
[424205721,1780665077000,-1548.0,0.00013351,2]
[424205724,1780665077000,-1548.0,0.00013351,2]
[424205717,1780665077000,-445.0,0.00013351,2]
[424205725,1780665077000,-1548.0,0.00013351,2]
[424205726,1780665077000,-152.0,0.00013351,2]
[424205727,1780665077000,-152.0,0.00013351,2]
[424205729,1780665077000,-151.0,0.00013351,2]
[424205728,1780665077000,-151.0,0.00013351,2]
[424205730,1780665077000,-151.0,0.00013351,2]
[424205731,1780665077000,-174.24112309,0.00013351,2]
[424205723,1780665077000,-1548.0,0.00013351,2]
[424205732,1780665078000,-1548.0,0.00013351,2]
[424205733,1780665078000,-1548.0,0.00013351,2]
[424205734,1780665078000,-1548.0,0.00013351,2]
[424205735,1780665078000,-1548.0,0.00013351,2]
[424205736,1780665078000,-1548.0,0.00013351,2]
[424205737,1780665078000,-157.92121354,0.00013351,2]
[424205739,1780665078000,-151.0,0.00013351,2]
[424205738,1780665078000,-151.0,0.00013351,2]
[424205741,1780665078000,-150.0,0.00013367,2]
[424205742,1780665078000,-470.65922505,0.00013369,2]
[424205743,1780665078000,-200.0,0.00013372,2]
[424205744,1780665078000,-470.65922505,0.00013383,2]
[424205745,1780665078000,-470.65922505,0.00013398,2]
[424205746,1780665078000,-1451.5756,0.00013399,2]
[424205740,1780665078000,-470.65922505,0.00013354,2]
[424205747,1780665078000,-200.0,0.00013402,2]
[424205756,1780665079000,-470.65922505,0.00013455,2]
[424205754,1780665079000,-470.65922505,0.00013441,2]
[424205755,1780665079000,-500.0,0.00013452,2]
[424205753,1780665079000,-200.0,0.00013431,2]
[424205749,1780665079000,-470.65922505,0.00013412,2]
[424205752,1780665079000,-470.65922505,0.00013426,2]
[424205750,1780665079000,-163.58997544,0.00013415,2]
[424205748,1780665079000,-150.0,0.00013409,2]
[424205751,1780665079000,-2404.0,0.00013421,5]
[424205758,1780665079000,-470.65922505,0.00013469,2]
[424205764,1780665079000,-1000.0,0.0001348,2]
[424205759,1780665079000,-425.12350692,0.00013472,7]
[424205760,1780665079000,-2684.06312873,0.00013479,2]
[424205761,1780665079000,-457.0,0.0001348,2]
[424205762,1780665079000,-456.0,0.0001348,2]
[424205763,1780665079000,-152.0,0.0001348,2]
[424205765,1780665079000,-1000.0,0.0001348,2]
[424205767,1780665079000,-1000.0,0.0001348,2]
[424205766,1780665079000,-1000.0,0.0001348,2]
[424205769,1780665079000,-1000.0,0.0001348,2]
[424205768,1780665079000,-1000.0,0.0001348,2]
[424205757,1780665079000,-200.0,0.0001346,2]
[424205777,1780665080000,-1000.0,0.0001348,2]
[424205776,1780665080000,-1000.0,0.0001348,2]
[424205775,1780665080000,-1000.0,0.0001348,2]
[424205774,1780665080000,-1000.0,0.0001348,2]
[424205778,1780665080000,-1000.0,0.0001348,2]
[424205772,1780665080000,-1000.0,0.0001348,2]
[424205771,1780665080000,-1000.0,0.0001348,2]
[424205770,1780665080000,-1000.0,0.0001348,2]
[424205773,1780665080000,-1000.0,0.0001348,2]
[424205779,1780665080000,-1000.0,0.0001348,2]
[424205784,1780665080000,-1000.0,0.0001348,2]
[424205781,1780665080000,-1000.0,0.0001348,2]
[424205790,1780665080000,-255.0,0.00013481,2]
[424205787,1780665080000,-1000.0,0.0001348,2]
[424205789,1780665080000,-2000.0,0.0001348,2]
[424205788,1780665080000,-190.87519934,0.0001348,2]
[424205780,1780665080000,-1000.0,0.0001348,2]
[424205791,1780665080000,-470.65922505,0.00013484,2]
[424205785,1780665080000,-1000.0,0.0001348,2]
[424205783,1780665080000,-1000.0,0.0001348,2]
[424205782,1780665080000,-1000.0,0.0001348,2]
[424205786,1780665080000,-1000.0,0.0001348,2]
[424205800,1780665081000,-1873.0,0.00013499,5]
[424205792,1780665081000,-200.0,0.00013489,2]
[424205793,1780665081000,-150.0,0.00013492,2]
[424205794,1780665081000,-151.0,0.00013496,2]
[424205796,1780665081000,-1013.97488959,0.00013498,3]
[424205795,1780665081000,-1013.97488959,0.00013498,3]
[424205798,1780665081000,-250.0,0.00013499,2]
[424205797,1780665081000,-470.65922505,0.00013498,2]
[424205799,1780665081000,-2351.0,0.00013499,5]
[424205801,1780665081000,-470.65922505,0.00013513,2]
[424205803,1780665081000,-470.65922505,0.00013527,2]
[424205811,1780665081000,-300.0,0.00013597,2]
[424205804,1780665081000,-166.90124494,0.00013531,2]
[424205805,1780665081000,-166.90124495,0.00013531,2]
[424205806,1780665081000,-150.0,0.00013534,2]
[424205807,1780665081000,-470.65922505,0.00013541,2]
[424205808,1780665081000,-470.65922505,0.00013556,2]
[424205810,1780665081000,-470.65922505,0.00013585,2]
[424205809,1780665081000,-470.65922505,0.0001357,2]
[424205802,1780665081000,-15000.0,0.00013517,2]
[424205812,1780665081000,-199.19886557,0.00013598,3]
[424205821,1780665082000,-470.65922505,0.00013628,2]
[424205820,1780665082000,-150.0,0.00013618,2]
[424205818,1780665082000,-210.90354027,0.000136,2]
[424205814,1780665082000,-1023.63214271,0.00013598,3]
[424205813,1780665082000,-1023.63214271,0.00013598,3]
[424205815,1780665082000,-1023.63214271,0.00013598,3]
[424205819,1780665082000,-470.65922505,0.00013613,2]
[424205816,1780665082000,-250.0,0.00013598,2]
[424205817,1780665082000,-470.65922505,0.00013599,2]
[424205823,1780665082000,-808.43136146,0.00013651,2]
[424205824,1780665082000,-273.39674476,0.00013654,7]
[424205825,1780665082000,-470.65922505,0.00013657,2]
[424205826,1780665082000,-1377.71418925,0.00013659,2]
[424205828,1780665082000,-2000.0,0.0001368,2]
[424205827,1780665082000,-470.65922505,0.00013671,2]
[424205822,1780665082000,-470.65922505,0.00013642,2]
[424205837,1780665083000,-500.0,0.00013698,2]
[424205836,1780665083000,-500.0,0.00013698,2]
[424205839,1780665083000,-500.0,0.00013698,2]
[424205835,1780665083000,-500.0,0.00013698,2]
[424205842,1780665083000,-500.0,0.00013698,2]
[424205832,1780665083000,-500.19382862,0.00013698,2]
[424205838,1780665083000,-500.0,0.00013698,2]
[424205840,1780665083000,-500.0,0.00013698,2]
[424205831,1780665083000,-151.0,0.00013695,2]
[424205830,1780665083000,-1344.05586149,0.00013691,2]
[424205829,1780665083000,-470.65922505,0.00013685,2]
[424205841,1780665083000,-500.0,0.00013698,2]
[424205834,1780665083000,-500.0,0.00013698,2]
[424205833,1780665083000,-500.0,0.00013698,2]
[424205844,1780665083000,-500.0,0.00013698,2]
[424205858,1780665083000,-500.0,0.00013698,2]
[424205843,1780665083000,-500.0,0.00013698,2]
[424205855,1780665083000,-500.0,0.00013698,2]
[424205860,1780665083000,-500.0,0.00013698,2]
[424205859,1780665083000,-500.0,0.00013698,2]
[424205852,1780665083000,-604.89787109,0.00013698,2]
[424205856,1780665083000,-500.0,0.00013698,2]
[424205849,1780665083000,-500.0,0.00013698,2]
[424205848,1780665083000,-500.0,0.00013698,2]
[424205851,1780665083000,-151.0,0.00013698,2]
[424205846,1780665083000,-500.0,0.00013698,2]
[424205845,1780665083000,-500.0,0.00013698,2]
[424205847,1780665083000,-500.0,0.00013698,2]
[424205850,1780665083000,-597.87290326,0.00013698,2]
[424205871,1780665084000,-151.0,0.00013698,2]
[424205865,1780665084000,-500.0,0.00013698,2]
[424205869,1780665084000,-500.0,0.00013698,2]
[424205866,1780665084000,-500.0,0.00013698,2]
[424205861,1780665084000,-500.0,0.00013698,2]
[424205868,1780665084000,-500.0,0.00013698,2]
[424205862,1780665084000,-500.0,0.00013698,2]
[424205864,1780665084000,-500.0,0.00013698,2]
[424205863,1780665084000,-500.0,0.00013698,2]
[424205867,1780665084000,-500.0,0.00013698,2]
[424205872,1780665084000,-151.0,0.00013698,2]
[424205870,1780665084000,-648.46869131,0.00013698,2]
[424205873,1780665084000,-500.0,0.00013698,2]
[424205882,1780665084000,-500.0,0.00013698,2]
[424205883,1780665084000,-500.0,0.00013698,2]
[424205884,1780665084000,-500.0,0.00013698,2]
[424205880,1780665084000,-500.0,0.00013698,2]
[424205881,1780665084000,-200.71550208,0.00013698,2]
[424205874,1780665084000,-500.0,0.00013698,2]
[424205879,1780665084000,-500.0,0.00013698,2]
[424205878,1780665084000,-500.0,0.00013698,2]
[424205877,1780665084000,-500.0,0.00013698,2]
[424205875,1780665084000,-500.0,0.00013698,2]
[424205876,1780665084000,-500.0,0.00013698,2]
[424205885,1780665084000,-500.0,0.00013698,2]
[424205908,1780665085000,-500.0,0.00013698,2]
[424205896,1780665085000,-500.0,0.00013698,2]
[424205889,1780665085000,-500.0,0.00013698,2]
[424205888,1780665085000,-500.0,0.00013698,2]
[424205893,1780665085000,-500.0,0.00013698,2]
[424205892,1780665085000,-500.0,0.00013698,2]
[424205905,1780665085000,-500.0,0.00013698,2]
[424205890,1780665085000,-500.0,0.00013698,2]
[424205887,1780665085000,-500.0,0.00013698,2]
[424205886,1780665085000,-500.0,0.00013698,2]
[424205903,1780665085000,-500.0,0.00013698,2]
[424205891,1780665085000,-500.0,0.00013698,2]
[424205901,1780665085000,-500.0,0.00013698,2]
[424205904,1780665085000,-500.0,0.00013698,2]
[424205900,1780665085000,-500.0,0.00013698,2]
[424205897,1780665085000,-500.0,0.00013698,2]
[424205898,1780665085000,-331.75,0.00013698,2]
[424205907,1780665085000,-500.0,0.00013698,2]
[424205902,1780665085000,-500.0,0.00013698,2]
[424205895,1780665085000,-500.0,0.00013698,2]
[424205899,1780665085000,-500.0,0.00013698,2]
[424205909,1780665085000,-500.0,0.00013698,2]
[424205906,1780665085000,-500.0,0.00013698,2]
[424205894,1780665085000,-500.0,0.00013698,2]
[424205925,1780665086000,-500.0,0.00013698,2]
[424205919,1780665086000,-500.0,0.00013698,2]
[424205926,1780665086000,-500.0,0.00013698,2]
[424205923,1780665086000,-500.0,0.00013698,2]
[424205917,1780665086000,-500.0,0.00013698,2]
[424205927,1780665086000,-500.0,0.00013698,2]
[424205920,1780665086000,-386.82400011,0.00013698,2]
[424205931,1780665086000,-500.0,0.00013698,2]
[424205912,1780665086000,-500.0,0.00013698,2]